[Event "Titled Tuesday Blitz January 17 Early 2023"]
[White "Ibadov, Dashgyn"]
[Black "Rose, Felix"]
[WhiteFideId "24107514"]
[BlackFideId "5105722"]
[WhiteElo "2391"]
[BlackElo "2091"]
[Result "1-0"]
[Round "09"]
[TimeControl "180+2"]
[Date "2023.01.17"]
[WhiteClock "0:00:29"]
[BlackClock "0:00:01"]

1. e4 {[%clk 0:03:00]}  e5 {[%clk 0:02:59]} 2. Nf3 {[%clk 0:02:59]}  Nc6 {[%clk 0:03:00]} 3. Bc4 {[%clk 0:02:56]}  Nf6 {[%clk 0:02:59]} 4. d4 {[%clk 0:02:54]}  exd4 {[%clk 0:02:59]} 5. e5 {[%clk 0:02:54]}  d5 {[%clk 0:02:59]} 6. Bb5 {[%clk 0:02:53]}  Ne4 {[%clk 0:02:59]} 7. Nxd4 {[%clk 0:02:53]}  Bc5 {[%clk 0:03:00]} 8. Be3 {[%clk 0:02:53]}  O-O {[%clk 0:03:00]} 9. Bxc6 {[%clk 0:02:40]}  bxc6 {[%clk 0:03:00]} 10. O-O {[%clk 0:02:38]}  Qe8 {[%clk 0:01:53]} 11. f3 {[%clk 0:02:32]}  Nf6 {[%clk 0:01:34]} 12. Qd2 {[%clk 0:02:20]}  Bxd4 {[%clk 0:00:57]} 13. Bxd4 {[%clk 0:02:08]}  Nd7 {[%clk 0:00:56]} 14. Nc3 {[%clk 0:01:45]}  Qe6 {[%clk 0:00:37]} 15. f4 {[%clk 0:01:41]}  c5 {[%clk 0:00:26]} 16. f5 {[%clk 0:01:35]}  Qc6 {[%clk 0:00:21]} 17. Bf2 {[%clk 0:01:25]}  Nxe5 {[%clk 0:00:20]} 18. Nxd5 {[%clk 0:01:25]}  Re8 {[%clk 0:00:16]} 19. f6 {[%clk 0:01:09]}  Bb7 {[%clk 0:00:16]} 20. Qg5 {[%clk 0:01:02]}  Ng6 {[%clk 0:00:11]} 21. c4 {[%clk 0:00:59]}  h6 {[%clk 0:00:06]} 22. Qd2 {[%clk 0:00:45]}  gxf6 {[%clk 0:00:06]} 23. Qxh6 {[%clk 0:00:43]}  Rad8 {[%clk 0:00:06]} 24. Bh4 {[%clk 0:00:28]}  Rxd5 {[%clk 0:00:04]} 25. Bxf6 {[%clk 0:00:28]}  Qxf6 {[%clk 0:00:01]} 26. Rxf6 {[%clk 0:00:29]} 1-0


[Site "https://www.chess.com"]

[Event "Titled Tuesday Blitz January 17 Early 2023"]
[White "Bon, Michael"]
[Black "Domingo Nunez, Ruben"]
[WhiteFideId "620696"]
[BlackFideId "22245570"]
[WhiteElo "2394"]
[BlackElo "2416"]
[Result "0-1"]
[Round "09"]
[TimeControl "180+2"]
[Date "2023.01.17"]
[WhiteClock "0:00:01"]
[BlackClock "0:01:20"]

1. e4 {[%clk 0:03:00]}  e5 {[%clk 0:02:59]} 2. Nc3 {[%clk 0:02:58]}  g6 {[%clk 0:02:58]} 3. f4 {[%clk 0:02:56]}  exf4 {[%clk 0:02:58]} 4. d4 {[%clk 0:02:53]}  Bg7 {[%clk 0:02:57]} 5. Bxf4 {[%clk 0:02:53]}  Nc6 {[%clk 0:02:56]} 6. Nf3 {[%clk 0:02:50]}  d6 {[%clk 0:02:56]} 7. Bc4 {[%clk 0:02:44]}  Na5 {[%clk 0:02:44]} 8. Bd3 {[%clk 0:02:36]}  Bg4 {[%clk 0:02:40]} 9. O-O {[%clk 0:02:31]}  Bxd4+ {[%clk 0:02:38]} 10. Kh1 {[%clk 0:02:31]}  Bg7 {[%clk 0:02:32]} 11. Qe1 {[%clk 0:02:22]}  Nc6 {[%clk 0:02:12]} 12. e5 {[%clk 0:02:12]}  Nge7 {[%clk 0:02:10]} 13. exd6 {[%clk 0:02:04]}  cxd6 {[%clk 0:02:11]} 14. Qh4 {[%clk 0:01:34]}  Bxf3 {[%clk 0:02:06]} 15. Rxf3 {[%clk 0:01:35]}  O-O {[%clk 0:02:05]} 16. Bg5 {[%clk 0:00:53]}  Qd7 {[%clk 0:01:55]} 17. Ne4 {[%clk 0:00:18]}  Nf5 {[%clk 0:01:49]} 18. Qh3 {[%clk 0:00:18]}  f6 {[%clk 0:01:46]} 19. Bd2 {[%clk 0:00:10]}  Ne5 {[%clk 0:01:38]} 20. Rf2 {[%clk 0:00:08]}  Rad8 {[%clk 0:01:35]} 21. Raf1 {[%clk 0:00:07]}  d5 {[%clk 0:01:25]} 22. Nc5 {[%clk 0:00:07]}  Qc6 {[%clk 0:01:25]} 23. Rxf5 {[%clk 0:00:05]}  Qxc5 {[%clk 0:01:23]} 24. R5f2 {[%clk 0:00:01]}  f5 {[%clk 0:01:20]} 0-1


[Site "https://www.chess.com"]

[Event "Titled Tuesday Blitz January 17 Early 2023"]
[White "Garv Gaur"]
[Black "Averjanov, Alexey"]
[WhiteFideId "45030839"]
[BlackFideId "14109867"]
[WhiteElo "2006"]
[BlackElo "2399"]
[Result "0-1"]
[Round "09"]
[TimeControl "180+2"]
[Date "2023.01.17"]
[WhiteClock "0:00:08"]
[BlackClock "0:01:21"]

1. d4 {[%clk 0:03:00]}  d5 {[%clk 0:02:52]} 2. Nf3 {[%clk 0:03:01]}  Nf6 {[%clk 0:02:51]} 3. c4 {[%clk 0:02:58]}  dxc4 {[%clk 0:02:51]} 4. g3 {[%clk 0:02:58]}  b5 {[%clk 0:02:48]} 5. Bg2 {[%clk 0:02:56]}  Bb7 {[%clk 0:02:48]} 6. O-O {[%clk 0:02:55]}  a6 {[%clk 0:02:47]} 7. a4 {[%clk 0:02:54]}  e6 {[%clk 0:02:44]} 8. b3 {[%clk 0:02:50]}  cxb3 {[%clk 0:02:43]} 9. Qxb3 {[%clk 0:02:51]}  c6 {[%clk 0:02:42]} 10. Bb2 {[%clk 0:02:50]}  Nbd7 {[%clk 0:02:41]} 11. Rc1 {[%clk 0:02:46]}  Rc8 {[%clk 0:02:38]} 12. Na3 {[%clk 0:02:38]}  Be7 {[%clk 0:02:36]} 13. Nc4 {[%clk 0:02:34]}  bxc4 {[%clk 0:02:33]} 14. Qxb7 {[%clk 0:02:33]}  Rb8 {[%clk 0:02:33]} 15. Qxc6 {[%clk 0:02:22]}  Rxb2 {[%clk 0:02:33]} 16. Qxa6 {[%clk 0:02:23]}  O-O {[%clk 0:02:17]} 17. Qxc4 {[%clk 0:02:22]}  Qa5 {[%clk 0:02:12]} 18. Rab1 {[%clk 0:02:08]}  Rfb8 {[%clk 0:02:03]} 19. Rxb2 {[%clk 0:01:53]}  Rxb2 {[%clk 0:02:04]} 20. Qc8+ {[%clk 0:01:49]}  Bf8 {[%clk 0:02:04]} 21. e3 {[%clk 0:01:22]}  Qxa4 {[%clk 0:01:59]} 22. Ne5 {[%clk 0:01:21]}  Nxe5 {[%clk 0:01:53]} 23. dxe5 {[%clk 0:01:22]}  Ng4 {[%clk 0:01:48]} 24. Bc6 {[%clk 0:00:59]}  Qa5 {[%clk 0:01:36]} 25. Rf1 {[%clk 0:00:24]}  Nxe3 {[%clk 0:01:23]} 26. fxe3 {[%clk 0:00:20]}  Qd2 {[%clk 0:01:22]} 27. Ra1 {[%clk 0:00:08]}  Qf2+ {[%clk 0:01:21]} 28. Kh1 {[%clk 0:00:08]}  Qxh2# {[%clk 0:01:21]} 0-1


[Site "https://www.chess.com"]

[Event "Titled Tuesday Blitz January 17 Early 2023"]
[White "Tologon tegin, Semetei"]
[Black "Qashashvili, Alexandre"]
[WhiteFideId "13800574"]
[BlackFideId "13600842"]
[WhiteElo "2372"]
[BlackElo "2505"]
[Result "1-0"]
[Round "09"]
[TimeControl "180+2"]
[Date "2023.01.17"]
[WhiteClock "0:00:40"]
[BlackClock "0:00:01"]

1. Nf3 {[%clk 0:02:49]}  c6 {[%clk 0:03:00]} 2. g3 {[%clk 0:02:47]}  d5 {[%clk 0:03:01]} 3. Bg2 {[%clk 0:02:48]}  Nf6 {[%clk 0:03:02]} 4. O-O {[%clk 0:02:47]}  Bf5 {[%clk 0:03:02]} 5. d3 {[%clk 0:02:47]}  Qc8 {[%clk 0:03:02]} 6. Re1 {[%clk 0:02:42]}  Bh3 {[%clk 0:03:01]} 7. Bh1 {[%clk 0:02:42]}  h5 {[%clk 0:03:02]} 8. c4 {[%clk 0:02:36]}  h4 {[%clk 0:03:00]} 9. cxd5 {[%clk 0:02:36]}  hxg3 {[%clk 0:02:59]} 10. hxg3 {[%clk 0:02:35]}  cxd5 {[%clk 0:02:58]} 11. Nc3 {[%clk 0:02:32]}  Nc6 {[%clk 0:02:57]} 12. Bf4 {[%clk 0:02:26]}  Qf5 {[%clk 0:02:54]} 13. Nb5 {[%clk 0:02:25]}  Rc8 {[%clk 0:02:50]} 14. e4 {[%clk 0:02:20]}  Qh7 {[%clk 0:02:33]} 15. Ng5 {[%clk 0:02:07]}  Qg6 {[%clk 0:02:22]} 16. Nxh3 {[%clk 0:02:05]}  Rxh3 {[%clk 0:02:21]} 17. Bg2 {[%clk 0:02:04]}  Rh8 {[%clk 0:02:20]} 18. Nc7+ {[%clk 0:02:00]}  Kd8 {[%clk 0:02:14]} 19. Nxd5 {[%clk 0:01:43]}  e6 {[%clk 0:02:13]} 20. Nxf6 {[%clk 0:01:41]}  Qxf6 {[%clk 0:02:10]} 21. d4 {[%clk 0:01:34]}  Be7 {[%clk 0:02:06]} 22. d5 {[%clk 0:01:33]}  exd5 {[%clk 0:02:06]} 23. exd5 {[%clk 0:01:30]}  Nd4 {[%clk 0:00:47]} 24. Be5 {[%clk 0:01:15]}  Qa6 {[%clk 0:00:27]} 25. Qxd4 {[%clk 0:01:07]}  Bc5 {[%clk 0:00:21]} 26. Qg4 {[%clk 0:00:59]}  Qg6 {[%clk 0:00:18]} 27. Qxg6 {[%clk 0:00:57]}  fxg6 {[%clk 0:00:19]} 28. Bxg7 {[%clk 0:00:56]}  Rh7 {[%clk 0:00:16]} 29. Be5 {[%clk 0:00:53]}  Be7 {[%clk 0:00:07]} 30. d6 {[%clk 0:00:52]}  Bg5 {[%clk 0:00:07]} 31. f4 {[%clk 0:00:47]}  Bh6 {[%clk 0:00:06]} 32. Rac1 {[%clk 0:00:46]}  Rxc1 {[%clk 0:00:06]} 33. Rxc1 {[%clk 0:00:47]}  g5 {[%clk 0:00:06]} 34. Be4 {[%clk 0:00:43]}  Rf7 {[%clk 0:00:04]} 35. Bd5 {[%clk 0:00:42]}  Rh7 {[%clk 0:00:03]} 36. Be6 {[%clk 0:00:42]}  Rd7 {[%clk 0:00:01]} 37. Bf6+ {[%clk 0:00:40]} 1-0


[Site "https://www.chess.com"]

[Event "Titled Tuesday Blitz January 17 Early 2023"]
[White "Miszler, Levente"]
[Black "Iskusnyh, Sergei"]
[WhiteFideId "763276"]
[BlackFideId "4120027"]
[WhiteElo "2271"]
[BlackElo "2440"]
[Result "1-0"]
[Round "09"]
[TimeControl "180+2"]
[Date "2023.01.17"]
[WhiteClock "0:00:04"]
[BlackClock "0:00:01"]

1. Nf3 {[%clk 0:01:50]}  d5 {[%clk 0:02:53]} 2. c4 {[%clk 0:01:50]}  c6 {[%clk 0:02:53]} 3. g3 {[%clk 0:01:47]}  Nf6 {[%clk 0:02:52]} 4. Bg2 {[%clk 0:01:47]}  Bf5 {[%clk 0:02:51]} 5. O-O {[%clk 0:01:47]}  e6 {[%clk 0:02:51]} 6. Qb3 {[%clk 0:01:46]}  Qb6 {[%clk 0:02:48]} 7. d3 {[%clk 0:01:36]}  Nbd7 {[%clk 0:02:45]} 8. Nbd2 {[%clk 0:01:35]}  h6 {[%clk 0:02:37]} 9. Qxb6 {[%clk 0:01:15]}  axb6 {[%clk 0:02:36]} 10. b3 {[%clk 0:01:13]}  Ba3 {[%clk 0:02:27]} 11. Bxa3 {[%clk 0:01:11]}  Rxa3 {[%clk 0:02:27]} 12. Nb1 {[%clk 0:01:12]}  Ra7 {[%clk 0:02:24]} 13. Nc3 {[%clk 0:01:08]}  O-O {[%clk 0:02:21]} 14. a4 {[%clk 0:01:08]}  Nc5 {[%clk 0:02:15]} 15. Nd4 {[%clk 0:01:02]}  Bg6 {[%clk 0:02:09]} 16. b4 {[%clk 0:00:57]}  Ncd7 {[%clk 0:02:05]} 17. a5 {[%clk 0:00:51]}  Rfa8 {[%clk 0:01:55]} 18. Ndb5 {[%clk 0:00:36]}  cxb5 {[%clk 0:01:46]} 19. Nxb5 {[%clk 0:00:37]}  bxa5 {[%clk 0:01:13]} 20. Nxa7 {[%clk 0:00:35]}  Rxa7 {[%clk 0:01:14]} 21. Rxa5 {[%clk 0:00:31]}  Rxa5 {[%clk 0:01:04]} 22. bxa5 {[%clk 0:00:32]}  Nc5 {[%clk 0:00:57]} 23. cxd5 {[%clk 0:00:07]}  Nxd5 {[%clk 0:00:49]} 24. Rb1 {[%clk 0:00:07]}  Nc3 {[%clk 0:00:34]} 25. Rb2 {[%clk 0:00:07]}  Nd5 {[%clk 0:00:15]} 26. Bxd5 {[%clk 0:00:06]}  exd5 {[%clk 0:00:14]} 27. Rb5 {[%clk 0:00:07]}  Na6 {[%clk 0:00:05]} 28. Rxb7 {[%clk 0:00:07]}  Bf5 {[%clk 0:00:04]} 29. Ra7 {[%clk 0:00:05]}  Nc5 {[%clk 0:00:03]} 30. Ra8+ {[%clk 0:00:05]}  Kh7 {[%clk 0:00:02]} 31. a6 {[%clk 0:00:05]}  Nxa6 {[%clk 0:00:01]} 32. Rxa6 {[%clk 0:00:05]}  g5 {[%clk 0:00:02]} 33. Ra5 {[%clk 0:00:06]}  Be6 {[%clk 0:00:01]} 34. Kg2 {[%clk 0:00:05]}  Kg7 {[%clk 0:00:02]} 35. Kf3 {[%clk 0:00:05]}  Kf6 {[%clk 0:00:01]} 36. Ke3 {[%clk 0:00:05]}  Ke5 {[%clk 0:00:01]} 37. d4+ {[%clk 0:00:05]}  Kf5 {[%clk 0:00:01]} 38. Ra6 {[%clk 0:00:04]} 1-0


[Site "https://www.chess.com"]

[Event "Titled Tuesday Blitz January 17 Early 2023"]
[White "Ovezdurdyyeva, Jemal"]
[Black "Kozin, Yuri"]
[WhiteFideId "14001888"]
[BlackFideId "4129920"]
[WhiteElo "2078"]
[BlackElo "2251"]
[Result "0-1"]
[Round "09"]
[TimeControl "180+2"]
[Date "2023.01.17"]
[WhiteClock "0:01:22"]
[BlackClock "0:01:34"]

1. e4 {[%clk 0:03:00]}  c5 {[%clk 0:02:55]} 2. Nf3 {[%clk 0:03:00]}  e6 {[%clk 0:02:55]} 3. c3 {[%clk 0:03:00]}  Nf6 {[%clk 0:02:55]} 4. Bd3 {[%clk 0:03:00]}  d5 {[%clk 0:02:54]} 5. exd5 {[%clk 0:02:59]}  Nxd5 {[%clk 0:02:54]} 6. O-O {[%clk 0:02:58]}  Be7 {[%clk 0:02:49]} 7. Bc2 {[%clk 0:02:57]}  O-O {[%clk 0:02:48]} 8. d4 {[%clk 0:02:57]}  cxd4 {[%clk 0:02:48]} 9. cxd4 {[%clk 0:02:57]}  Nc6 {[%clk 0:02:48]} 10. Nc3 {[%clk 0:02:57]}  Nxc3 {[%clk 0:02:42]} 11. bxc3 {[%clk 0:02:57]}  b6 {[%clk 0:02:42]} 12. Qd3 {[%clk 0:02:53]}  g6 {[%clk 0:02:42]} 13. Bh6 {[%clk 0:02:53]}  Re8 {[%clk 0:02:42]} 14. Ba4 {[%clk 0:02:47]}  Bb7 {[%clk 0:02:39]} 15. Rfd1 {[%clk 0:02:41]}  Bf8 {[%clk 0:02:33]} 16. Bxf8 {[%clk 0:02:35]}  Rxf8 {[%clk 0:02:33]} 17. c4 {[%clk 0:02:35]}  Qf6 {[%clk 0:02:16]} 18. d5 {[%clk 0:02:30]}  Rad8 {[%clk 0:02:11]} 19. Qa3 {[%clk 0:02:09]}  Na5 {[%clk 0:02:02]} 20. Bb3 {[%clk 0:01:52]}  exd5 {[%clk 0:01:59]} 21. cxd5 {[%clk 0:01:48]}  Bxd5 {[%clk 0:02:00]} 22. Bxd5 {[%clk 0:01:45]}  Rxd5 {[%clk 0:02:00]} 23. Rac1 {[%clk 0:01:33]}  Rxd1+ {[%clk 0:01:38]} 24. Rxd1 {[%clk 0:01:34]}  Re8 {[%clk 0:01:34]} 25. h4 {[%clk 0:01:27]}  Qe7 {[%clk 0:01:34]} 26. h5 {[%clk 0:01:22]}  Qxa3 {[%clk 0:01:34]} 0-1


[Site "https://www.chess.com"]

[Event "Titled Tuesday Blitz January 17 Early 2023"]
[White "Petrova, Irina"]
[Black "Parpiev, Isaak"]
[WhiteFideId "14124122"]
[BlackFideId "34281576"]
[WhiteElo "2108"]
[BlackElo "2167"]
[Result "0-1"]
[Round "09"]
[TimeControl "180+2"]
[Date "2023.01.17"]
[WhiteClock "0:01:45"]
[BlackClock "0:00:46"]

1. e4 {[%clk 0:03:00]}  c5 {[%clk 0:02:56]} 2. Nf3 {[%clk 0:03:00]}  d6 {[%clk 0:02:55]} 3. Bb5+ {[%clk 0:02:59]}  Nd7 {[%clk 0:02:55]} 4. O-O {[%clk 0:02:58]}  Nf6 {[%clk 0:02:54]} 5. Re1 {[%clk 0:02:57]}  a6 {[%clk 0:02:54]} 6. Bf1 {[%clk 0:02:57]}  e6 {[%clk 0:02:52]} 7. c3 {[%clk 0:02:57]}  Be7 {[%clk 0:02:49]} 8. d4 {[%clk 0:02:58]}  O-O {[%clk 0:02:46]} 9. a4 {[%clk 0:02:57]}  b6 {[%clk 0:02:34]} 10. Nbd2 {[%clk 0:02:51]}  Bb7 {[%clk 0:02:34]} 11. b3 {[%clk 0:02:51]}  cxd4 {[%clk 0:02:32]} 12. cxd4 {[%clk 0:02:51]}  d5 {[%clk 0:02:32]} 13. e5 {[%clk 0:02:51]}  Ne4 {[%clk 0:02:33]} 14. Nxe4 {[%clk 0:02:47]}  dxe4 {[%clk 0:02:34]} 15. Nd2 {[%clk 0:02:47]}  f5 {[%clk 0:02:19]} 16. exf6 {[%clk 0:02:43]}  Nxf6 {[%clk 0:02:19]} 17. Bb2 {[%clk 0:02:42]}  Rc8 {[%clk 0:02:17]} 18. Nc4 {[%clk 0:02:36]}  Bb4 {[%clk 0:02:07]} 19. Re3 {[%clk 0:02:31]}  Bd5 {[%clk 0:01:57]} 20. Ne5 {[%clk 0:02:28]}  a5 {[%clk 0:01:50]} 21. Bc4 {[%clk 0:02:25]}  Nd7 {[%clk 0:01:40]} 22. Qg4 {[%clk 0:02:19]}  Nxe5 {[%clk 0:01:37]} 23. dxe5 {[%clk 0:02:19]}  Bc5 {[%clk 0:01:26]} 24. Rg3 {[%clk 0:02:16]}  Bxf2+ {[%clk 0:01:24]} 25. Kh1 {[%clk 0:02:14]}  Bxg3 {[%clk 0:01:23]} 26. hxg3 {[%clk 0:02:11]}  Qe8 {[%clk 0:00:51]} 27. Bxd5 {[%clk 0:02:07]}  exd5 {[%clk 0:00:51]} 28. e6 {[%clk 0:02:07]}  Qg6 {[%clk 0:00:49]} 29. Qxg6 {[%clk 0:01:54]}  hxg6 {[%clk 0:00:50]} 30. Bd4 {[%clk 0:01:53]}  Rc6 {[%clk 0:00:46]} 31. e7 {[%clk 0:01:45]}  Re8 {[%clk 0:00:46]} 0-1


[Site "https://www.chess.com"]

[Event "Titled Tuesday Blitz January 17 Early 2023"]
[White "Sohier, Julien"]
[Black "Vovk, Orest"]
[WhiteFideId "645346"]
[BlackFideId "14113490"]
[WhiteElo "2214"]
[BlackElo "2315"]
[Result "0-1"]
[Round "09"]
[TimeControl "180+2"]
[Date "2023.01.17"]
[WhiteClock "0:00:02"]
[BlackClock "0:00:06"]

1. e4 {[%clk 0:03:00]}  g5 {[%clk 0:02:56]} 2. d4 {[%clk 0:02:56]}  g4 {[%clk 0:02:56]} 3. Nc3 {[%clk 0:02:47]}  h5 {[%clk 0:02:56]} 4. Be3 {[%clk 0:02:46]}  Bg7 {[%clk 0:02:56]} 5. Qd2 {[%clk 0:02:46]}  c5 {[%clk 0:02:49]} 6. O-O-O {[%clk 0:02:39]}  cxd4 {[%clk 0:02:25]} 7. Bxd4 {[%clk 0:02:39]}  Bxd4 {[%clk 0:02:21]} 8. Qxd4 {[%clk 0:02:38]}  Nf6 {[%clk 0:02:21]} 9. Nd5 {[%clk 0:02:16]}  Rh6 {[%clk 0:01:07]} 10. Qe3 {[%clk 0:02:15]}  Rg6 {[%clk 0:00:52]} 11. Bd3 {[%clk 0:02:14]}  Nxd5 {[%clk 0:00:50]} 12. exd5 {[%clk 0:02:14]}  Rg8 {[%clk 0:00:42]} 13. Ne2 {[%clk 0:01:59]}  d6 {[%clk 0:00:41]} 14. Qh6 {[%clk 0:01:54]}  Rf8 {[%clk 0:00:40]} 15. Qxh5 {[%clk 0:01:50]}  Qa5 {[%clk 0:00:39]} 16. Nc3 {[%clk 0:01:47]}  Nd7 {[%clk 0:00:40]} 17. Qxg4 {[%clk 0:01:39]}  Ne5 {[%clk 0:00:40]} 18. Qa4+ {[%clk 0:01:35]}  Qxa4 {[%clk 0:00:39]} 19. Nxa4 {[%clk 0:01:36]}  Bd7 {[%clk 0:00:39]} 20. Nc3 {[%clk 0:01:35]}  Kd8 {[%clk 0:00:38]} 21. h3 {[%clk 0:01:33]}  Rc8 {[%clk 0:00:38]} 22. f4 {[%clk 0:01:28]}  Ng6 {[%clk 0:00:37]} 23. g3 {[%clk 0:01:28]}  f5 {[%clk 0:00:34]} 24. h4 {[%clk 0:01:27]}  Nh8 {[%clk 0:00:33]} 25. Ne2 {[%clk 0:01:24]}  Nf7 {[%clk 0:00:33]} 26. Nd4 {[%clk 0:01:23]}  Nh6 {[%clk 0:00:33]} 27. Rhe1 {[%clk 0:01:21]}  Rc5 {[%clk 0:00:32]} 28. Ne6+ {[%clk 0:01:14]}  Bxe6 {[%clk 0:00:32]} 29. dxe6 {[%clk 0:01:15]}  Rg8 {[%clk 0:00:31]} 30. Re3 {[%clk 0:01:15]}  Ng4 {[%clk 0:00:30]} 31. Rf3 {[%clk 0:01:14]}  Nh2 {[%clk 0:00:30]} 32. Re3 {[%clk 0:01:13]}  Ng4 {[%clk 0:00:30]} 33. Re2 {[%clk 0:01:10]}  Nh6 {[%clk 0:00:29]} 34. Rg1 {[%clk 0:01:09]}  Rg6 {[%clk 0:00:27]} 35. b3 {[%clk 0:01:01]}  Rd5 {[%clk 0:00:27]} 36. Ree1 {[%clk 0:00:40]}  Rd4 {[%clk 0:00:24]} 37. Kd2 {[%clk 0:00:38]}  Ke8 {[%clk 0:00:22]} 38. c3 {[%clk 0:00:38]}  Rd5 {[%clk 0:00:22]} 39. c4 {[%clk 0:00:37]}  Ra5 {[%clk 0:00:21]} 40. a4 {[%clk 0:00:36]}  Kf8 {[%clk 0:00:21]} 41. Kc3 {[%clk 0:00:36]}  Ra6 {[%clk 0:00:21]} 42. Bc2 {[%clk 0:00:17]}  Kg7 {[%clk 0:00:19]} 43. Kd4 {[%clk 0:00:16]}  Kf6 {[%clk 0:00:19]} 44. Bd1 {[%clk 0:00:13]}  Rc6 {[%clk 0:00:18]} 45. Bf3 {[%clk 0:00:12]}  Rc7 {[%clk 0:00:17]} 46. a5 {[%clk 0:00:06]}  Rc5 {[%clk 0:00:13]} 47. b4 {[%clk 0:00:06]}  Rc7 {[%clk 0:00:13]} 48. b5 {[%clk 0:00:06]}  b6 {[%clk 0:00:13]} 49. axb6 {[%clk 0:00:06]}  axb6 {[%clk 0:00:14]} 50. Re2 {[%clk 0:00:05]}  Ra7 {[%clk 0:00:12]} 51. Bd5 {[%clk 0:00:05]}  Ra3 {[%clk 0:00:12]} 52. Re3 {[%clk 0:00:06]}  Ra2 {[%clk 0:00:11]} 53. Rd3 {[%clk 0:00:03]}  Ng4 {[%clk 0:00:11]} 54. Rf3 {[%clk 0:00:03]}  Rg8 {[%clk 0:00:10]} 55. Rd3 {[%clk 0:00:03]}  Rc8 {[%clk 0:00:10]} 56. Rdd1 {[%clk 0:00:03]}  Ra3 {[%clk 0:00:08]} 57. Ra1 {[%clk 0:00:03]}  Rb3 {[%clk 0:00:07]} 58. Rgb1 {[%clk 0:00:03]}  Rxg3 {[%clk 0:00:06]} 59. Ra6 {[%clk 0:00:02]}  Nf2 {[%clk 0:00:06]} 0-1


[Site "https://www.chess.com"]

[Event "Titled Tuesday Blitz January 17 Early 2023"]
[White "Reprintsev, Alexander"]
[Black "Player, Edmund C"]
[WhiteFideId "14100541"]
[BlackFideId "406520"]
[WhiteElo "2253"]
[BlackElo "2204"]
[Result "1-0"]
[Round "09"]
[TimeControl "180+2"]
[Date "2023.01.17"]
[WhiteClock "0:01:15"]
[BlackClock "0:00:06"]

1. e4 {[%clk 0:03:00]}  e5 {[%clk 0:02:55]} 2. f4 {[%clk 0:02:59]}  exf4 {[%clk 0:02:55]} 3. Bc4 {[%clk 0:03:00]}  Nc6 {[%clk 0:02:50]} 4. d4 {[%clk 0:02:59]}  g5 {[%clk 0:02:41]} 5. Nc3 {[%clk 0:02:56]}  Bg7 {[%clk 0:02:30]} 6. h4 {[%clk 0:02:52]}  Nxd4 {[%clk 0:02:01]} 7. Nf3 {[%clk 0:02:41]}  Nxf3+ {[%clk 0:01:50]} 8. Qxf3 {[%clk 0:02:41]}  h6 {[%clk 0:01:40]} 9. hxg5 {[%clk 0:02:40]}  hxg5 {[%clk 0:01:41]} 10. Rxh8 {[%clk 0:02:39]}  Bxh8 {[%clk 0:01:42]} 11. Qh5 {[%clk 0:02:39]}  Bxc3+ {[%clk 0:01:42]} 12. bxc3 {[%clk 0:02:38]}  Qf6 {[%clk 0:01:36]} 13. Bd2 {[%clk 0:01:50]}  d6 {[%clk 0:01:36]} 14. O-O-O {[%clk 0:01:50]}  Be6 {[%clk 0:01:34]} 15. Bxe6 {[%clk 0:01:49]}  Qxe6 {[%clk 0:01:34]} 16. Qxg5 {[%clk 0:01:48]}  Ne7 {[%clk 0:01:24]} 17. Qb5+ {[%clk 0:01:39]}  Kd8 {[%clk 0:00:36]} 18. Qxb7 {[%clk 0:01:38]}  Rc8 {[%clk 0:00:32]} 19. Rh1 {[%clk 0:01:36]}  Kd7 {[%clk 0:00:28]} 20. Bxf4 {[%clk 0:01:30]}  Nc6 {[%clk 0:00:16]} 21. Qb3 {[%clk 0:01:27]}  Qxe4 {[%clk 0:00:10]} 22. Qxf7+ {[%clk 0:01:25]}  Ne7 {[%clk 0:00:09]} 23. Bd2 {[%clk 0:01:17]}  Rb8 {[%clk 0:00:08]} 24. Re1 {[%clk 0:01:15]}  Qh4 {[%clk 0:00:06]} 25. g3 {[%clk 0:01:15]} 1-0


[Site "https://www.chess.com"]

[Event "Titled Tuesday Blitz January 17 Early 2023"]
[White "Bommini, Mounika Akshaya"]
[Black "Vagman, Roy"]
[WhiteFideId "25019872"]
[BlackFideId "2828995"]
[WhiteElo "2118"]
[BlackElo "2273"]
[Result "1-0"]
[Round "09"]
[TimeControl "180+2"]
[Date "2023.01.17"]
[WhiteClock "0:01:19"]
[BlackClock "0:01:43"]

1. d4 {[%clk 0:02:50]}  Nf6 {[%clk 0:02:59]} 2. Bf4 {[%clk 0:02:49]}  d6 {[%clk 0:02:58]} 3. Nc3 {[%clk 0:02:47]}  g6 {[%clk 0:02:57]} 4. e4 {[%clk 0:02:47]}  Bg7 {[%clk 0:02:52]} 5. Qd2 {[%clk 0:02:48]}  Nc6 {[%clk 0:02:48]} 6. O-O-O {[%clk 0:02:45]}  O-O {[%clk 0:02:44]} 7. h4 {[%clk 0:02:42]}  h5 {[%clk 0:02:39]} 8. Bh6 {[%clk 0:02:40]}  Bh8 {[%clk 0:02:31]} 9. Bxf8 {[%clk 0:02:37]}  Qxf8 {[%clk 0:02:32]} 10. Nf3 {[%clk 0:02:26]}  Bg7 {[%clk 0:02:22]} 11. Ng5 {[%clk 0:02:23]}  e5 {[%clk 0:02:19]} 12. Bc4 {[%clk 0:02:06]}  exd4 {[%clk 0:02:06]} 13. Nb5 {[%clk 0:01:54]}  Ne5 {[%clk 0:02:03]} 14. Bb3 {[%clk 0:01:49]}  c5 {[%clk 0:02:01]} 15. f4 {[%clk 0:01:41]}  Nc6 {[%clk 0:01:50]} 16. Nxf7 {[%clk 0:01:36]}  Kh7 {[%clk 0:01:45]} 17. Nbxd6 {[%clk 0:01:26]}  Bg4 {[%clk 0:01:46]} 18. Ng5+ {[%clk 0:01:22]}  Kh8 {[%clk 0:01:44]} 19. Ndf7+ {[%clk 0:01:21]}  Kg8 {[%clk 0:01:45]} 20. Ne5+ {[%clk 0:01:18]}  Kh8 {[%clk 0:01:43]} 21. Nxg6# {[%clk 0:01:19]} 1-0


[Site "https://www.chess.com"]